bitfinex/quotes_BTCUSD_20251010
["timestamp","ask_amount","ask_price","bid_price","bid_amount"]
[1760088288790,5.00217476,121810.0,121800.0,0.21909361]
[1760088289209,5.31993476,121810.0,121800.0,0.21909361]
[1760088289616,5.00217476,121810.0,121800.0,0.25866868]
[1760088289820,5.31993476,121810.0,121800.0,0.25866868]
[1760088290477,5.31993476,121810.0,121800.0,0.21909361]
[1760088290661,5.31893476,121810.0,121800.0,0.21909361]
[1760088294587,5.00117476,121810.0,121800.0,0.21909361]
[1760088294815,0.08665476,121810.0,121800.0,0.21909361]
[1760088295035,0.31893476,121810.0,121800.0,0.21909361]
[1760088295283,0.31893476,121810.0,121800.0,0.28334603]
[1760088296812,0.00117476,121810.0,121800.0,0.28334603]
[1760088297022,0.00117476,121810.0,121800.0,0.36646809]
[1760088297231,0.01209476,121810.0,121800.0,0.36646809]
[1760088299395,0.09177476,121810.0,121800.0,0.36646809]
[1760088299809,0.00117476,121810.0,121800.0,0.36646809]
[1760088301927,0.00117476,121810.0,121800.0,0.32689302]
[1760088306435,0.0002,121820.0,121810.0,0.50419013]
[1760088306655,0.0002,121820.0,121810.0,0.60046219]
[1760088306868,0.0002,121820.0,121810.0,0.64155219]
[1760088307074,0.0002,121820.0,121810.0,0.72154899]
[1760088307735,0.0002,121820.0,121810.0,0.78441678]
[1760088308227,0.0002,121820.0,121810.0,0.80908861]
[1760088309355,0.0002,121820.0,121810.0,1.04136861]
[1760088309797,0.0002,121820.0,121810.0,0.80908861]
[1760088310026,0.0002,121820.0,121810.0,1.04136861]
[1760088310333,0.0002,121820.0,121810.0,0.80908861]
[1760088310591,0.0002,121820.0,121810.0,1.04136861]
[1760088312201,0.00071192,121820.0,121810.0,1.04136861]
[1760088314817,0.00837561,121820.0,121810.0,1.04136861]
[1760088315037,0.00071192,121820.0,121810.0,1.04136861]
[1760088317161,0.00837725,121820.0,121810.0,1.04136861]
[1760088317410,0.00837725,121820.0,121810.0,0.80908861]
[1760088317651,0.00837725,121820.0,121810.0,1.04128861]
[1760088317872,0.00071192,121820.0,121810.0,1.04128861]
[1760088318561,0.00837913,121820.0,121810.0,1.04128861]
[1760088319011,0.00071192,121820.0,121810.0,1.04128861]
[1760088319249,0.00837913,121820.0,121810.0,1.04128861]
[1760088320318,0.00837913,121820.0,121810.0,0.80908861]
[1760088320565,0.00837913,121820.0,121810.0,1.04124861]
[1760088322966,0.01108,121840.0,121830.0,0.16416317]
[1760088323201,0.01108,121840.0,121830.0,0.21014593]
[1760088323449,0.01108,121840.0,121830.0,0.22676593]
[1760088323667,0.0002,121840.0,121830.0,0.25123593]
[1760088324311,0.23232,121840.0,121830.0,0.25123593]
[1760088325209,0.0002,121840.0,121830.0,0.25123593]
[1760088325424,0.23232,121840.0,121830.0,0.25123593]
[1760088326074,0.23232,121840.0,121830.0,0.21840317]
[1760088326291,0.3964697,121840.0,121830.0,0.21840317]
[1760088327149,0.1643497,121840.0,121830.0,0.21840317]
[1760088327372,0.3964697,121840.0,121830.0,0.21840317]
[1760088327826,0.23232,121840.0,121830.0,0.21840317]
[1760088328083,0.0002,121840.0,121830.0,0.21840317]
[1760088328385,0.23236,121840.0,121830.0,0.26044204]
[1760088328886,0.23338363,121840.0,121830.0,0.26044204]
[1760088329350,0.00122363,121840.0,121830.0,0.26044204]
[1760088329582,0.23338363,121840.0,121830.0,0.21840317]
[1760088331693,0.23334363,121840.0,121830.0,0.21840317]
[1760088331900,0.16537333,121840.0,121830.0,0.21840317]
[1760088332111,0.31878363,121840.0,121830.0,0.21840317]
[1760088332763,0.48293333,121840.0,121830.0,0.21840317]
[1760088334093,0.25081333,121840.0,121830.0,0.21840317]
[1760088334529,0.48293333,121840.0,121830.0,0.21840317]
[1760088334961,0.49062277,121840.0,121830.0,0.21840317]
[1760088335609,0.49062277,121840.0,121830.0,0.05424]
[1760088335850,0.59850277,121840.0,121830.0,0.02977]
[1760088336074,1.43058277,121840.0,121830.0,0.01315]
[1760088336294,1.19850277,121840.0,121830.0,0.01315]
[1760088336559,1.43066277,121840.0,121830.0,0.01315]
[1760088336773,1.43066277,121840.0,121830.0,0.03007]
[1760088337193,1.34522277,121840.0,121830.0,0.03007]
[1760088337408,1.19850277,121840.0,121830.0,0.03007]
[1760088337853,1.43066277,121840.0,121830.0,0.03007]
[1760088339466,1.43066104,121840.0,121830.0,0.03007]
[1760088342469,1.11306104,121840.0,121830.0,0.03007]
[1760088342671,0.89850104,121840.0,121830.0,0.05667]
[1760088342878,1.13062104,121840.0,121830.0,0.05667]
[1760088343080,0.81306104,121840.0,121830.0,0.05667]
[1760088343437,1.13062104,121840.0,121830.0,0.05667]
[1760088344408,0.30768771,121840.0,121830.0,0.05667]
[1760088344591,0.78939741,121840.0,121830.0,0.05667]
[1760088344946,0.47183741,121840.0,121830.0,0.05667]
[1760088345173,0.78939741,121840.0,121830.0,0.05667]
[1760088346300,0.78939741,121840.0,121830.0,0.03007]
[1760088347002,0.78944764,121840.0,121830.0,0.03007]
[1760088347223,0.78944764,121840.0,121830.0,0.05489]
[1760088348153,0.55732764,121840.0,121830.0,0.05489]
[1760088348380,1.08940764,121840.0,121830.0,0.03007]
[1760088349095,1.00396764,121840.0,121830.0,0.03007]
[1760088349494,1.08940764,121840.0,121830.0,0.05489]
[1760088350365,1.08171993,121840.0,121830.0,0.03007]
[1760088352844,0.16416317,121830.0,121820.0,0.20214572]
[1760088353049,0.16416317,121830.0,121820.0,0.22012572]
[1760088353465,0.16416317,121830.0,121820.0,0.22149563]
[1760088353898,0.39620317,121830.0,121820.0,0.22149563]
[1760088354781,0.16416317,121830.0,121820.0,0.22149563]
[1760088355044,0.16416317,121830.0,121820.0,0.05731898]
[1760088355264,0.39620317,121830.0,121820.0,0.03249898]
[1760088355748,0.39624317,121830.0,121820.0,0.01451898]
[1760088355959,0.39624317,121830.0,121820.0,0.03249898]
[1760088356163,0.24960317,121830.0,121820.0,0.05731898]
[1760088356368,0.48168317,121830.0,121820.0,0.05731898]
[1760088356573,0.16416317,121830.0,121820.0,0.05731898]
[1760088356794,0.48164317,121830.0,121820.0,0.05731898]
[1760088357656,0.48164317,121830.0,121820.0,0.22149563]
[1760088357850,0.16416317,121830.0,121820.0,0.22149563]
[1760088358059,1.06419993,121840.0,121820.0,0.22149563]
[1760088358266,0.25501355,121840.0,121830.0,0.01258]
[1760088358469,0.68464055,121840.0,121830.0,0.05538]
[1760088358686,0.45260055,121840.0,121830.0,0.05538]
[1760088358894,0.68472055,121840.0,121830.0,0.05538]
[1760088359330,0.48713355,121840.0,121830.0,0.21954317]
[1760088359541,0.25501355,121840.0,121830.0,0.21954317]
[1760088359758,0.68369455,121840.0,121830.0,0.21954317]
[1760088360175,0.68369455,121840.0,121830.0,0.05538]
[1760088360384,0.25501355,121840.0,121830.0,0.21954317]
[1760088360589,0.25733149,121840.0,121830.0,0.21954317]
[1760088360791,0.48945149,121840.0,121830.0,0.21954317]
[1760088361403,0.98945149,121840.0,121830.0,0.21954317]
[1760088361591,0.90401149,121840.0,121830.0,0.21954317]
[1760088361805,0.17189149,121840.0,121830.0,0.21954317]
[1760088362067,0.36715449,121840.0,121830.0,0.05538]
[1760088362304,0.28171449,121840.0,121830.0,0.05538]
[1760088362516,0.48945149,121840.0,121830.0,0.21954317]
[1760088362980,0.25733149,121840.0,121830.0,0.21954317]
[1760088363189,0.27445349,121840.0,121830.0,0.21954317]
[1760088363402,0.59201349,121840.0,121830.0,0.21954317]
[1760088363841,0.35989349,121840.0,121830.0,0.21954317]
[1760088364057,0.48945149,121840.0,121830.0,0.21954317]
[1760088364484,0.25733149,121840.0,121830.0,0.21954317]
[1760088364705,0.48945149,121840.0,121830.0,0.21954317]
[1760088364909,0.25733149,121840.0,121830.0,0.21954317]
[1760088365122,0.59274449,121840.0,121830.0,0.21954317]
[1760088365736,0.48945149,121840.0,121830.0,0.21954317]
[1760088365966,0.59294549,121840.0,121830.0,0.21954317]
[1760088367135,0.59318179,121840.0,121830.0,0.25936705]
[1760088367345,0.08549023,121840.0,121830.0,0.25936705]
[1760088367554,0.31757023,121840.0,121830.0,0.25936705]
[1760088367979,0.23221023,121840.0,121830.0,0.25936705]
[1760088368262,0.31765023,121840.0,121830.0,0.25936705]
[1760088368924,0.31765023,121840.0,121830.0,0.21954317]
[1760088372272,0.31761023,121840.0,121830.0,0.21954317]
[1760088381282,5.023e-05,121840.0,121830.0,0.21954317]
[1760088381522,0.31753023,121840.0,121830.0,0.21954317]
[1760088383430,5.023e-05,121840.0,121830.0,0.21954317]
[1760088383688,0.31749023,121840.0,121830.0,0.21954317]
[1760088383914,0.31749023,121840.0,121830.0,0.22932578]
[1760088384143,5.023e-05,121840.0,121830.0,0.22932578]
[1760088384374,0.31749023,121840.0,121830.0,0.22932578]
[1760088384599,5.023e-05,121840.0,121830.0,0.22932578]
[1760088384832,0.23205023,121840.0,121830.0,0.22932578]
[1760088385076,5.023e-05,121840.0,121830.0,0.22932578]
[1760088385313,0.23205023,121840.0,121830.0,0.22932578]
[1760088386001,0.23205023,121840.0,121830.0,0.23962916]
[1760088386460,0.23205023,121840.0,121830.0,0.22984655]
[1760088386687,0.23205023,121840.0,121830.0,0.21954317]
[1760088388255,5.023e-05,121840.0,121830.0,0.21954317]
[1760088388462,0.23205023,121840.0,121830.0,0.21954317]
[1760088388667,0.23201023,121840.0,121830.0,0.21954317]
[1760088389528,5.023e-05,121840.0,121830.0,0.21954317]
[1760088389941,0.23201023,121840.0,121830.0,0.21954317]
[1760088390373,0.23201023,121840.0,121830.0,0.26288551]
[1760088390786,0.23201023,121840.0,121830.0,0.21954317]
[1760088393873,0.2318358,121840.0,121830.0,0.21954317]
[1760088394596,0.09194061,121850.0,121830.0,0.21954317]
[1760088394836,0.09194061,121850.0,121840.0,0.21796467]
[1760088395082,0.09194061,121850.0,121840.0,0.2177597]
[1760088395314,0.32394061,121850.0,121840.0,0.26552219]
[1760088396885,0.32394061,121850.0,121840.0,0.2177597]
[1760088397792,0.00650061,121850.0,121840.0,0.2177597]
[1760088398003,0.23846061,121850.0,121840.0,0.2177597]
[1760088400023,0.00650061,121850.0,121840.0,0.2177597]
[1760088400256,0.23846061,121850.0,121840.0,0.2177597]
[1760088400469,0.00650061,121850.0,121840.0,0.26552219]
[1760088400626,0.16250061,121850.0,121840.0,0.34864425]
[1760088400853,0.00650061,121850.0,121840.0,0.34864425]
[1760088401624,0.00650061,121850.0,121840.0,0.69514486]
[1760088403094,0.00650061,121850.0,121840.0,0.92710486]
[1760088404560,0.00650061,121850.0,121840.0,0.69514486]
[1760088404768,0.00650061,121850.0,121840.0,0.92710486]
[1760088406241,0.00650061,121850.0,121840.0,0.69514486]
[1760088406449,0.00650061,121850.0,121840.0,0.92710486]
[1760088408413,0.00650061,121850.0,121840.0,0.69514486]
[1760088408596,0.00650061,121850.0,121840.0,0.92706486]
[1760088410686,0.00650061,121850.0,121840.0,0.92702486]
[1760088412719,0.00650061,121850.0,121840.0,0.69514486]
[1760088412923,0.00650061,121850.0,121840.0,0.92702486]
[1760088415769,0.00650061,121850.0,121840.0,0.69514486]
[1760088416004,0.00650061,121850.0,121840.0,0.92698486]
[1760088419989,0.00650061,121850.0,121840.0,0.69514486]
[1760088420216,0.00650061,121850.0,121840.0,0.92698486]
[1760088427380,0.00650061,121850.0,121840.0,0.92690486]
[1760088430513,0.0004,121860.0,121850.0,0.50413623]
[1760088430728,0.0004,121860.0,121850.0,0.93540509]
[1760088430941,0.0004,121860.0,121850.0,0.95112509]
[1760088431152,1e-08,121860.0,121850.0,0.71932509]
[1760088431360,1e-08,121860.0,121850.0,0.7841004]
[1760088431572,1e-08,121860.0,121850.0,1.0159404]
[1760088432250,1e-08,121860.0,121850.0,1.0159804]
[1760088433297,1e-08,121860.0,121850.0,1.0169804]
[1760088433525,1e-08,121860.0,121850.0,0.7851004]
[1760088433731,1e-08,121860.0,121850.0,1.0169804]
[1760088434370,1e-08,121860.0,121850.0,1.0179804]
[1760088435889,1e-08,121860.0,121850.0,0.7861004]
[1760088436355,0.00051168,121860.0,121850.0,1.0179804]
[1760088438322,0.50021958,121920.0,121910.0,0.25539361]
[1760088438531,0.50021958,121920.0,121910.0,0.21612545]
[1760088440658,0.49027136,121920.0,121910.0,0.21612545]
[1760088440876,0.49127136,121920.0,121910.0,0.21612545]
[1760088441505,0.49027136,121920.0,121910.0,0.21612545]
[1760088441765,0.08610268,121920.0,121910.0,0.21612545]
[1760088441979,0.31798268,121920.0,121910.0,0.21612545]
[1760088442216,0.48202467,121920.0,121910.0,0.21612545]
[1760088442657,0.00070268,121920.0,121910.0,0.25539361]
[1760088442870,0.48202467,121920.0,121910.0,0.21612545]
[1760088443085,0.48609305,121920.0,121910.0,0.21612545]
[1760088443746,0.48509305,121920.0,121910.0,0.21612545]
[1760088448953,0.4927664,121920.0,121910.0,0.21612545]
[1760088452461,0.32872441,121920.0,121910.0,0.21612545]
[1760088452671,0.32864441,121920.0,121910.0,0.21612545]
[1760088453108,0.32869617,121920.0,121910.0,0.21612545]
[1760088454517,0.09689617,121920.0,121910.0,0.21612545]
[1760088454719,0.01149617,121920.0,121910.0,0.22937453]
[1760088454914,0.09689617,121920.0,121910.0,0.22937453]
[1760088455120,0.01149617,121920.0,121910.0,0.22937453]
[1760088455338,0.08922282,121920.0,121910.0,0.22937453]
[1760088455547,0.32869617,121920.0,121910.0,0.22937453]
[1760088455730,0.32869617,121920.0,121910.0,0.21612545]
[1760088455951,0.32869887,121920.0,121910.0,0.21612545]
[1760088457864,0.32865887,121920.0,121910.0,0.21612545]
[1760088458492,0.24325887,121920.0,121910.0,0.21612545]
[1760088458707,0.32865887,121920.0,121910.0,0.21612545]
[1760088459813,0.01149887,121920.0,121910.0,0.25541096]
[1760088460038,0.00382282,121920.0,121910.0,0.21612545]
[1760088460237,0.23558282,121920.0,121910.0,0.21612545]
[1760088461209,0.00382282,121920.0,121910.0,0.29924751]
[1760088461430,0.23558282,121920.0,121910.0,0.29924751]
[1760088461653,0.23558282,121920.0,121910.0,0.37149887]
[1760088462497,0.23558282,121920.0,121910.0,0.32390115]
[1760088462941,0.00382282,121920.0,121910.0,0.32390115]
[1760088463152,0.23558282,121920.0,121910.0,0.32390115]
[1760088464269,0.00382282,121920.0,121910.0,0.33365478]
[1760088464693,0.00382282,121920.0,121910.0,0.76029083]
[1760088464904,0.00382282,121920.0,121910.0,0.84028763]
[1760088467121,0.00382282,121920.0,121910.0,1.41204763]
[1760088468201,0.00382282,121920.0,121910.0,1.18028763]
[1760088468443,0.00382282,121920.0,121910.0,1.41204763]
[1760088468659,0.00382282,121920.0,121910.0,0.98541158]
[1760088468883,0.00382282,121920.0,121910.0,1.41204763]
[1760088470181,0.00382282,121920.0,121910.0,1.18028763]
[1760088470390,0.00382282,121920.0,121910.0,1.41200763]
[1760088471075,0.00382282,121920.0,121910.0,1.18028763]
[1760088471295,0.00382282,121920.0,121910.0,1.41200763]
[1760088472801,0.00382282,121920.0,121910.0,1.18028763]
[1760088473014,0.00382282,121920.0,121910.0,1.41200763]
[1760088474080,0.00382282,121920.0,121910.0,1.18028763]
[1760088474270,0.00382282,121920.0,121910.0,1.41200763]
[1760088475114,0.00382282,121920.0,121910.0,1.18028763]
[1760088475472,0.00382282,121920.0,121910.0,1.41196763]
[1760088476733,0.00382282,121920.0,121910.0,0.98533158]
[1760088476936,0.00382282,121920.0,121910.0,1.41196763]
[1760088477554,0.00331982,121920.0,121910.0,1.41196763]
[1760088482335,0.00331982,121920.0,121910.0,1.18028763]
[1760088482557,0.00331982,121920.0,121910.0,1.41192763]
[1760088484360,0.00331982,121920.0,121910.0,1.18028763]
[1760088484577,0.00331982,121920.0,121910.0,1.41192763]
[1760088484802,0.00331982,121920.0,121910.0,1.18028763]
[1760088485021,0.00331982,121920.0,121910.0,1.41192763]
[1760088486305,0.00331982,121920.0,121910.0,1.18028763]
[1760088486511,0.00331982,121920.0,121910.0,1.41192763]
[1760088493320,0.00331982,121920.0,121910.0,1.18028763]
[1760088493550,0.00331982,121920.0,121910.0,1.62519372]
[1760088495598,0.00240661,121920.0,121910.0,1.62519372]
[1760088496334,1e-08,121920.0,121910.0,1.62519372]
[1760088496539,1e-08,121920.0,121910.0,1.71350479]
[1760088496738,1e-08,121920.0,121910.0,1.94514479]
[1760088497142,1e-08,121920.0,121910.0,2.04514478]
[1760088497391,1e-08,121920.0,121910.0,1.83850477]
[1760088497602,0.01190384,121960.0,121950.0,0.48395271]
[1760088497803,0.01190384,121960.0,121950.0,0.57958477]
[1760088497804,0.0120276,121960.0,121950.0,0.57958477]
[1760088498009,0.0120276,121960.0,121950.0,0.61849477]
[1760088498281,0.0120276,121960.0,121950.0,0.40764171]
[1760088498458,0.0120276,121960.0,121950.0,0.71823102]
[1760088500756,0.0120276,121960.0,121950.0,0.64313982]
[1760088503335,0.01407201,121960.0,121950.0,0.64313982]
[1760088513835,0.01407201,121960.0,121950.0,0.32318875]
[1760088514089,0.33402308,121960.0,121950.0,0.24006669]
[1760088515637,0.56562308,121960.0,121950.0,0.21542164]
[1760088515842,1.04956234,121960.0,121950.0,0.21542164]
[1760088516050,1.04956234,121960.0,121950.0,0.05142]
[1760088516489,0.81796234,121960.0,121950.0,0.02783]
[1760088516692,1.05723727,121960.0,121950.0,0.02783]
[1760088516890,1.05723726,121960.0,121950.0,0.02783]
[1760088517546,1.04956234,121960.0,121950.0,0.02783]
[1760088518400,0.16400164,121950.0,121940.0,0.01251]
[1760088518623,0.16401508,121940.0,121930.0,0.03608]
[1760088518850,0.80391722,121940.0,121930.0,0.19199854]
[1760088519068,0.87154214,121940.0,121930.0,0.21556854]
[1760088519287,0.3,121950.0,121940.0,0.16401508]
[1760088519503,0.70531107,121950.0,121940.0,0.21446508]
[1760088519720,0.78100164,121950.0,121940.0,0.21446508]
[1760088519904,1.10095271,121950.0,121940.0,0.21446508]
[1760088520615,1.10099271,121950.0,121940.0,0.21446508]
[1760088520828,1.10099271,121950.0,121940.0,0.02688]
[1760088521040,1.10099271,121950.0,121930.0,0.03608]
[1760088521041,0.16401508,121940.0,121930.0,0.03608]
[1760088521261,1.03559722,121940.0,121930.0,0.01251]
[1760088521474,0.80391722,121940.0,121930.0,0.02797]
[1760088521718,1.03559722,121940.0,121930.0,0.02797]
[1760088521929,1.12095722,121940.0,121930.0,0.02797]
[1760088522135,1.12095722,121940.0,121930.0,0.19199854]
[1760088522344,1.12095722,121940.0,121930.0,0.02797]
[1760088522550,0.88927722,121940.0,121930.0,0.02797]
[1760088522759,1.12095722,121940.0,121930.0,0.02797]
[1760088523173,0.88927722,121940.0,121930.0,0.02797]
[1760088523376,1.12095722,121940.0,121930.0,0.02797]
[1760088523595,0.16402854,121930.0,121910.0,0.03607409]
[1760088523815,0.48399306,121920.0,121910.0,0.19904545]
[1760088524028,1.03562413,121920.0,121910.0,0.21450545]
[1760088524251,0.63703107,121920.0,121910.0,0.21450545]
[1760088524888,0.48399306,121920.0,121910.0,0.21450545]
[1760088525099,0.63718177,121920.0,121910.0,0.21450545]
[1760088525321,0.40546177,121920.0,121910.0,0.21450545]
[1760088525555,0.80122376,121920.0,121910.0,0.21450545]
[1760088525799,1.12117483,121920.0,121910.0,0.21450545]
[1760088526021,0.80122376,121920.0,121910.0,0.21450545]
[1760088527145,0.80122376,121920.0,121910.0,0.05045]
[1760088527146,1.12117483,121920.0,121910.0,0.05045]
[1760088527362,0.80122376,121920.0,121910.0,0.05045]
[1760088527595,0.88945483,121920.0,121910.0,0.02688]
[1760088527821,1.12113483,121920.0,121910.0,0.02688]
[1760088528109,0.82875423,121920.0,121910.0,0.02688]
[1760088528344,0.91411423,121920.0,121910.0,0.05079]
[1760088528587,0.3418901,121920.0,121910.0,0.21484545]
[1760088528810,0.3172307,121920.0,121910.0,0.21484545]
[1760088529044,0.0001507,121920.0,121910.0,0.21484545]
[1760088529265,0.3173107,121920.0,121910.0,0.21484545]
[1760088529500,0.2319507,121920.0,121910.0,0.21484545]
[1760088529970,0.48414376,121920.0,121910.0,0.21484545]
[1760088530448,0.71594376,121920.0,121910.0,0.05079]
[1760088531817,0.71594376,121920.0,121910.0,0.21484545]
[1760088532098,0.72513602,121920.0,121910.0,0.21484545]
[1760088532586,0.71594376,121920.0,121910.0,0.21484545]
[1760088533223,0.72535765,121920.0,121910.0,0.05079]
[1760088533849,0.71594376,121920.0,121910.0,0.05079]
[1760088534312,0.50880194,121920.0,121910.0,0.21484545]
[1760088534528,0.59416194,121920.0,121910.0,0.21484545]
[1760088534766,0.80130376,121920.0,121910.0,0.21484545]
[1760088534980,0.71594376,121920.0,121910.0,0.21484545]
[1760088535193,0.80134376,121920.0,121910.0,0.21484545]
[1760088535402,0.80138376,121920.0,121910.0,0.21484545]
[1760088536302,0.71594376,121920.0,121910.0,0.21484545]
[1760088536522,0.80134376,121920.0,121910.0,0.05079]
[1760088537553,0.56954376,121920.0,121910.0,0.05079]
[1760088537762,0.48139269,121920.0,121910.0,0.05079]
[1760088537971,0.48414376,121920.0,121910.0,0.05079]
[1760088538204,0.80134376,121920.0,121910.0,0.05079]
[1760088539307,0.0001507,121920.0,121910.0,0.21484545]
[1760088539513,0.3173507,121920.0,121910.0,0.28602796]
[1760088539738,0.3173507,121920.0,121910.0,0.21484545]
[1760088540363,0.2319507,121920.0,121910.0,0.21484545]
[1760088542321,0.23961293,121920.0,121910.0,0.21484545]
[1760088543224,0.00781293,121920.0,121910.0,0.53479652]
[1760088543470,0.0001507,121920.0,121910.0,0.21484545]
[1760088543694,0.0201507,121920.0,121910.0,0.68175984]
[1760088544130,0.0001507,121920.0,121910.0,0.68175984]
[1760088544383,0.2319507,121920.0,121910.0,0.68175984]
[1760088544613,0.2319507,121920.0,121910.0,0.32262137]
[1760088545017,0.2319507,121920.0,121910.0,0.64257244]
[1760088547050,0.2319507,121920.0,121910.0,0.61791858]
[1760088548180,0.2319107,121920.0,121910.0,0.61791858]
[1760088548418,0.23959017,121920.0,121910.0,0.61791858]
[1760088549343,0.00783017,121920.0,121910.0,0.61791858]
[1760088549578,0.00783017,121920.0,121910.0,0.37796431]
[1760088549826,0.00783017,121920.0,121910.0,0.69791538]
[1760088550043,0.0155107,121920.0,121910.0,0.69791538]
[1760088550274,0.0001507,121920.0,121910.0,0.69791538]
[1760088550718,0.0001507,121920.0,121910.0,1.03791538]
[1760088552568,0.0001507,121920.0,121910.0,1.03891538]
[1760088552749,0.0001507,121920.0,121910.0,1.03991538]
[1760088553521,0.0001507,121920.0,121910.0,1.14663886]
[1760088557289,0.0001507,121920.0,121910.0,1.37839886]
[1760088561308,0.0001507,121920.0,121910.0,1.14663886]
[1760088561526,0.0001507,121920.0,121910.0,1.37835886]
[1760088566801,0.0001507,121920.0,121910.0,0.95164431]
[1760088567057,0.0001507,121920.0,121910.0,1.37831886]
[1760088569156,0.0001507,121920.0,121910.0,1.14663886]
[1760088569392,0.0001507,121920.0,121910.0,1.37827886]
[1760088570987,0.0001507,121920.0,121910.0,1.14663886]
[1760088571216,0.0001507,121920.0,121910.0,1.29828206]
[1760088576517,0.0001507,121920.0,121910.0,1.29828206]
[1760088581864,0.00051123,121930.0,121920.0,0.16404199]
[1760088581865,0.00049472,121930.0,121920.0,0.16404199]
[1760088582113,0.00049472,121930.0,121920.0,0.17538199]
[1760088582365,0.00049472,121930.0,121920.0,0.21571199]
[1760088596790,0.23213472,121930.0,121920.0,0.21571199]
[1760088597897,0.00049472,121930.0,121920.0,0.21571199]
[1760088598119,0.23213472,121930.0,121920.0,0.21571199]
[1760088599201,0.00049472,121930.0,121920.0,0.21571199]
[1760088599421,0.23213472,121930.0,121920.0,0.21571199]
[1760088599643,0.39616326,121930.0,121920.0,0.21571199]
[1760088600531,0.59119781,121930.0,121920.0,0.05167]
[1760088600754,0.16404199,121920.0,121910.0,0.01142]
[1760088600980,0.90771654,121920.0,121910.0,0.19805545]
[1760088601194,0.48104199,121920.0,121910.0,0.21322545]
[1760088601635,0.48104199,121920.0,121910.0,0.04917]
[1760088601847,0.48104199,121920.0,121910.0,0.21322545]
[1760088602068,0.48104199,121920.0,121910.0,0.04917]
[1760088602266,0.67607654,121920.0,121910.0,0.04917]
[1760088602529,0.24940199,121920.0,121910.0,0.02659]
[1760088602793,0.97607654,121920.0,121910.0,0.02659]
[1760088603036,1.29852605,121920.0,121910.0,0.02659]
[1760088603248,0.16405545,121910.0,121900.0,0.03554122]
[1760088603512,0.21614003,121910.0,121900.0,0.0525539]
[1760088603731,0.16405545,121910.0,121900.0,0.0525539]
[1760088604193,0.39569545,121910.0,121900.0,0.2166228]
[1760088604681,0.39569545,121910.0,121900.0,0.0525539]
[1760088605147,0.16405545,121910.0,121900.0,0.0525539]
[1760088605384,0.48105545,121910.0,121900.0,0.2166228]
[1760088607014,0.16405545,121910.0,121900.0,0.2166228]
[1760088607258,0.48105545,121910.0,121900.0,0.2166228]
[1760088607719,0.24941545,121910.0,121900.0,0.2166228]
[1760088607950,0.48105545,121910.0,121900.0,0.2166228]
[1760088609321,0.24941545,121910.0,121900.0,0.2166228]
[1760088609541,0.49033722,121910.0,121900.0,0.05086259]
[1760088610581,0.91701177,121910.0,121900.0,0.05086259]
[1760088610813,0.91701177,121910.0,121900.0,0.02828259]
[1760088611032,0.49033722,121910.0,121900.0,0.02828259]
[1760088611473,0.49033722,121910.0,121900.0,0.05268259]
[1760088612117,0.68533177,121910.0,121900.0,0.02828259]
[1760088612766,0.49033722,121910.0,121900.0,0.02828259]
[1760088613192,0.68533177,121910.0,121900.0,0.02828259]
[1760088613398,0.91701177,121910.0,121900.0,0.02828259]
[1760088613640,0.83165177,121910.0,121900.0,0.02828259]
[1760088613860,0.68537177,121910.0,121900.0,0.02828259]
[1760088614074,0.59997177,121910.0,121900.0,0.02828259]
[1760088614285,0.91705177,121910.0,121900.0,0.02828259]
[1760088614941,0.59997177,121910.0,121900.0,0.05268259]
[1760088615216,0.68537177,121910.0,121900.0,0.05268259]
[1760088615433,0.91705177,121910.0,121900.0,0.02828259]
[1760088615664,0.57893733,121910.0,121900.0,0.02828259]
[1760088615891,1.11061733,121910.0,121900.0,0.02828259]
[1760088617965,0.87893733,121910.0,121900.0,0.02828259]
[1760088618206,0.96205939,121910.0,121900.0,0.00050268]
[1760088618422,1.49373939,121910.0,121900.0,0.00050268]
[1760088619304,1.50140473,121910.0,121900.0,0.00050268]
[1760088619719,1.82164484,121910.0,121900.0,0.00050268]
[1760088620157,1.50140473,121910.0,121900.0,0.00050268]
[1760088620405,1.18432473,121910.0,121900.0,0.01701268]
[1760088620624,1.50140473,121910.0,121900.0,0.02868268]
[1760088622169,1.50140634,121910.0,121900.0,0.00050268]
[1760088622732,1.26972746,121910.0,121900.0,0.00050268]
[1760088623020,1.50140746,121910.0,121900.0,0.00050268]
[1760088623197,1.49373939,121910.0,121900.0,0.00050268]
[1760088624309,1.50140886,121910.0,121900.0,0.00050268]
[1760088624782,1.26972886,121910.0,121900.0,0.01701268]
[1760088625069,1.26205939,121910.0,121900.0,0.01701268]
[1760088625299,1.50141065,121910.0,121900.0,0.01701268]
[1760088625715,1.18433065,121910.0,121900.0,0.01701268]
[1760088625936,1.50141065,121910.0,121900.0,0.02868268]
[1760088628537,1.18433065,121910.0,121900.0,0.02868268]
[1760088628756,1.50141065,121910.0,121900.0,0.02868268]
[1760088631173,1.50941065,121910.0,121900.0,0.02868268]
[1760088633535,1.50141065,121910.0,121900.0,0.02868268]
[1760088634584,1.26973065,121910.0,121900.0,0.00050268]
[1760088634784,1.50141065,121910.0,121900.0,0.00050268]
[1760088635838,3.12235293,121910.0,121900.0,0.00050268]
[1760088636074,3.13035293,121910.0,121900.0,0.00050268]
[1760088636280,3.36203293,121910.0,121900.0,0.00050268]
[1760088636830,2.74621701,121910.0,121900.0,0.00050268]
[1760088637039,3.38669723,121910.0,121900.0,0.00050268]
[1760088637338,3.14734597,121910.0,121900.0,0.00050268]
[1760088637583,3.15503775,121910.0,121900.0,0.00050268]
[1760088637921,7.21778175,121910.0,121900.0,0.00050268]
[1760088638126,7.53802186,121910.0,121900.0,0.00050268]
[1760088638340,7.21778175,121910.0,121900.0,0.00050268]
[1760088638736,6.98610175,121910.0,121900.0,0.00050268]
[1760088638963,2.21778175,121910.0,121900.0,0.00050268]
[1760088639170,7.21778175,121910.0,121900.0,0.00050268]
[1760088639375,7.24793365,121910.0,121900.0,0.00050268]
[1760088640213,7.24793365,121910.0,121900.0,0.00038495]
[1760088640856,7.01625365,121910.0,121900.0,0.00038495]
[1760088641060,7.22452748,121910.0,121900.0,0.00038495]
[1760088641279,1.26692726,121910.0,121900.0,0.00038495]
[1760088641511,7.56620748,121910.0,121900.0,0.00038495]
[1760088641724,7.39567348,121910.0,121900.0,0.00038495]
[1760088641960,7.31420348,121910.0,121900.0,0.00038495]
[1760088642175,2.56620748,121910.0,121900.0,0.00038495]
[1760088642396,7.32023048,121910.0,121900.0,0.00038495]
[1760088642610,7.13099948,121910.0,121900.0,0.00038495]
[1760088642876,2.56620748,121910.0,121900.0,0.00038495]
[1760088643090,7.02920448,121910.0,121900.0,0.00038495]
[1760088643311,7.04844848,121910.0,121900.0,0.00038495]
[1760088643529,7.05145248,121910.0,121900.0,0.00038495]
[1760088643738,7.24153048,121910.0,121900.0,0.00038495]
[1760088643961,6.71277448,121910.0,121900.0,0.00038495]
[1760088644178,7.20895948,121910.0,121900.0,0.00038495]
[1760088644395,7.22326948,121910.0,121900.0,0.00038495]
[1760088644613,6.55241858,121910.0,121900.0,0.00038495]
[1760088644834,1.89540347,121910.0,121900.0,0.02814495]